bitfinex/quotes_BTCUSD_20250320
["timestamp","ask_amount","ask_price","bid_price","bid_amount"]
[1742479156951,9.7e-07,85633.0,85632.0,2.74312908]
[1742479160175,9.7e-07,85633.0,85632.0,1.24312908]
[1742479160431,9.7e-07,85633.0,85632.0,1.2407033]
[1742479160605,9.7e-07,85633.0,85632.0,1.33042777]
[1742479161271,9.7e-07,85633.0,85632.0,1.2407033]
[1742479161701,9.7e-07,85633.0,85632.0,1.7965833]
[1742479162642,9.7e-07,85633.0,85632.0,1.7963833]
[1742479165160,9.7e-07,85633.0,85632.0,1.6577033]
[1742479165374,9.7e-07,85633.0,85632.0,1.33148545]
[1742479165585,9.7e-07,85633.0,85632.0,0.01]
[1742479165793,9.7e-07,85633.0,85632.0,0.2554033]
[1742479166396,9.7e-07,85633.0,85632.0,0.2504033]
[1742479166688,9.7e-07,85633.0,85632.0,0.2474033]
[1742479166913,9.7e-07,85633.0,85632.0,0.2494033]
[1742479167309,0.32783197,85633.0,85632.0,0.0041693]
[1742479167520,0.33979709,85633.0,85632.0,0.0041693]
[1742479168135,0.32783197,85633.0,85632.0,0.0041693]
[1742479168334,0.08260097,85633.0,85632.0,0.0021693]
[1742479168897,0.08260097,85633.0,85632.0,0.36697833]
[1742479168898,9.7e-07,85633.0,85632.0,0.36697833]
[1742479169434,9.7e-07,85633.0,85632.0,0.36497833]
[1742479169960,9.7e-07,85633.0,85632.0,0.36597833]
[1742479170371,9.7e-07,85633.0,85632.0,0.36797833]
[1742479171536,9.7e-07,85633.0,85632.0,0.36597833]
[1742479171938,9.7e-07,85633.0,85632.0,0.36897833]
[1742479172540,9.7e-07,85633.0,85632.0,0.36797833]
[1742479173137,9.7e-07,85633.0,85632.0,0.36997833]
[1742479173308,9.7e-07,85633.0,85632.0,0.36697833]
[1742479173510,9.7e-07,85633.0,85632.0,0.36497833]
[1742479173721,9.7e-07,85633.0,85632.0,0.37397833]
[1742479173915,9.7e-07,85633.0,85632.0,0.68851918]
[1742479177854,9.7e-07,85633.0,85632.0,0.67397833]
[1742479178558,0.00033977,85633.0,85632.0,0.67397833]
[1742479180477,0.00033977,85633.0,85632.0,0.2544033]
[1742479180843,0.00033977,85633.0,85632.0,0.37397833]
[1742479181052,0.00033977,85633.0,85632.0,0.0091693]
[1742479181271,0.00033977,85633.0,85632.0,0.1478493]
[1742479181493,0.00033977,85633.0,85632.0,0.3930833]
[1742479184360,0.00033977,85633.0,85632.0,0.51265833]
[1742479184565,0.00033977,85633.0,85632.0,0.81265833]
[1742479184719,0.00033977,85633.0,85632.0,0.82719918]
[1742479185140,0.00033977,85633.0,85632.0,2.32719918]
[1742479185332,7.7e-07,85633.0,85632.0,2.32719918]
[1742479186025,0.000339,85645.0,85644.0,0.2452]
[1742479186296,0.00075547,85645.0,85644.0,0.81799588]
[1742479187121,0.00075547,85645.0,85644.0,0.80345503]
[1742479187882,0.00075547,85645.0,85644.0,0.80545503]
[1742479188421,0.00075547,85645.0,85644.0,0.80745503]
[1742479188579,0.00075547,85645.0,85644.0,1.37787588]
[1742479189148,0.00075547,85645.0,85644.0,1.3896108]
[1742479189837,0.00075547,85645.0,85644.0,1.37787588]
[1742479195459,0.00075547,85645.0,85644.0,1.23919588]
[1742479195673,0.0003392,85656.0,85644.0,1.23919588]
[1742479195674,7e-08,85656.0,85655.0,0.545168]
[1742479195848,7e-08,85656.0,85655.0,0.67928388]
[1742479196685,7e-08,85656.0,85655.0,0.81792388]
[1742479197699,7e-08,85656.0,85655.0,0.82592388]
[1742479198295,7e-08,85656.0,85655.0,0.82292388]
[1742479198706,7e-08,85656.0,85655.0,0.82892388]
[1742479199961,7e-08,85656.0,85655.0,0.67574303]
[1742479200289,7e-08,85656.0,85655.0,0.244494]
[1742479200501,0.233505,85652.0,85648.0,0.03475071]
[1742479200704,0.011676,85644.0,85632.0,0.0118463]
[1742479200909,0.69685003,85651.0,85632.0,0.0118463]
[1742479200910,0.233539,85639.0,85632.0,0.0001693]
[1742479201112,0.011677,85633.0,85632.0,0.0001693]
[1742479201538,0.233552,85634.0,85632.0,0.0001693]
[1742479201731,0.011675,85649.0,85636.0,0.011677]
[1742479201937,0.011677,85637.0,85632.0,0.2337253]
[1742479202148,0.245213,85640.0,85634.0,0.233551]
[1742479202356,0.233532,85642.0,85636.0,0.245223]
[1742479202533,0.011676,85645.0,85637.0,0.011677]
[1742479202762,0.23353,85642.0,85636.0,0.233545]
[1742479203172,0.233524,85644.0,85639.0,0.011676]
[1742479203370,0.127,85651.0,85650.0,0.245183]
[1742479203554,0.127,85651.0,85650.0,0.243183]
[1742479203555,0.0455,85651.0,85650.0,0.243183]
[1742479203755,0.279006,85651.0,85646.0,0.233518]
[1742479203968,0.0455,85651.0,85646.0,0.233519]
[1742479204130,0.233502,85653.0,85649.0,0.233509]
[1742479204339,7e-08,85656.0,85655.0,0.011674]
[1742479204544,7e-08,85656.0,85655.0,0.43124903]
[1742479204703,7e-08,85656.0,85655.0,1.94578988]
[1742479205801,7e-08,85656.0,85655.0,0.44578988]
[1742479206324,0.0003394,85659.0,85658.0,0.56470085]
[1742479206325,4.7e-07,85659.0,85658.0,0.56470085]
[1742479206443,8.7e-07,85661.0,85660.0,0.55969585]
[1742479206656,9.4e-07,85670.0,85669.0,0.3]
[1742479206852,9.4e-07,85670.0,85669.0,0.58438788]
[1742479207434,9.4e-07,85670.0,85669.0,0.58938788]
[1742479207558,0.10462379,85682.0,85680.0,0.545097]
[1742479207559,7.4e-07,85681.0,85680.0,0.545097]
[1742479207789,7.4e-07,85681.0,85680.0,1.23497288]
[1742479207992,5.3e-07,85682.0,85681.0,0.33121185]
[1742479208140,5.3e-07,85682.0,85681.0,0.58938688]
[1742479208340,5.3e-07,85682.0,85681.0,0.58438688]
[1742479208586,0.00024117,85686.0,85685.0,0.55962385]
[1742479208827,0.00024117,85686.0,85685.0,0.67919888]
[1742479209812,0.002,85689.0,85688.0,0.33121085]
[1742479209813,7.7e-07,85689.0,85688.0,0.33121085]
[1742479210056,6e-07,85719.0,85718.0,0.244989]
[1742479210194,6e-07,85719.0,85718.0,1.37338488]
[1742479210410,0.00012551,85719.0,85718.0,1.37338488]
[1742479210624,0.00012551,85719.0,85718.0,2.73478488]
[1742479210826,0.00012551,85719.0,85718.0,2.87338488]
[1742479211038,5.1e-07,85719.0,85718.0,2.87338488]
[1742479212014,5.1e-07,85719.0,85718.0,2.87838488]
[1742479213115,1.1e-07,85731.0,85729.0,0.3]
[1742479213412,9.1e-07,85737.0,85736.0,0.55947785]
[1742479213565,9.1e-07,85737.0,85736.0,0.81761288]
[1742479213771,0.00041697,85737.0,85736.0,0.81761288]
[1742479214975,0.00041697,85737.0,85736.0,0.81961288]
[1742479215586,0.00041697,85737.0,85736.0,0.82161288]
[1742479216335,0.00041697,85737.0,85736.0,0.81961288]
[1742479216620,0.00041697,85737.0,85736.0,0.82261288]
[1742479217026,0.00041697,85737.0,85736.0,0.82761288]
[1742479217207,0.00041697,85737.0,85736.0,0.83261288]
[1742479217405,0.00041697,85737.0,85736.0,0.82761288]
[1742479217607,9.7e-07,85737.0,85736.0,0.83261288]
[1742479217805,9.7e-07,85737.0,85736.0,0.82761288]
[1742479218187,9.7e-07,85737.0,85736.0,0.83361288]
[1742479218994,9.7e-07,85737.0,85736.0,0.82861288]
[1742479219214,9.7e-07,85737.0,85736.0,0.87409288]
[1742479219415,9.7e-07,85737.0,85736.0,0.88009288]
[1742479219617,7.7e-07,85742.0,85741.0,0.544923]
[1742479219818,7.7e-07,85742.0,85741.0,0.67903888]
[1742479220816,7.7e-07,85742.0,85741.0,0.68503888]
[1742479220999,7.7e-07,85742.0,85741.0,0.78503888]
[1742479221206,7.7e-07,85742.0,85741.0,0.92363888]
[1742479221993,7.7e-07,85749.0,85748.0,0.544903]
[1742479222214,0.00012551,85749.0,85748.0,1.23429888]
[1742479222421,5.1e-07,85749.0,85748.0,1.23429888]
[1742479223315,5.1e-07,85749.0,85748.0,1.37305888]
[1742479223495,5.1e-07,85749.0,85748.0,1.37905888]
[1742479223716,5.1e-07,85749.0,85748.0,1.37901888]
[1742479224092,5.1e-07,85749.0,85748.0,1.37301888]
[1742479224895,5.1e-07,85749.0,85748.0,1.37901888]
[1742479225102,9.1e-07,85759.0,85756.0,0.3]
[1742479225297,9.1e-07,85759.0,85758.0,0.37898988]
[1742479226999,9.1e-07,85759.0,85758.0,0.51794988]
[1742479227243,9.1e-07,85759.0,85758.0,0.52390988]
[1742479227415,9.1e-07,85759.0,85758.0,0.52386988]
[1742479227632,9.1e-07,85759.0,85758.0,0.39098988]
[1742479227803,9.1e-07,85759.0,85758.0,0.52982988]
[1742479228211,0.00017011,85759.0,85758.0,0.52382988]
[1742479228446,1.1e-07,85759.0,85758.0,0.52382988]
[1742479229155,1.1e-07,85759.0,85758.0,0.82382988]
[1742479229376,0.002,85769.0,85768.0,0.544846]
[1742479229377,1.1e-07,85769.0,85768.0,0.544846]
[1742479229564,1.1e-07,85769.0,85768.0,0.67896188]
[1742479230643,1.1e-07,85769.0,85768.0,0.68496188]
[1742479231055,1.1e-07,85769.0,85768.0,0.82980188]
[1742479231263,1.1e-07,85769.0,85768.0,0.69096188]
[1742479231488,1.1e-07,85769.0,85768.0,0.82996188]
[1742479231641,1.1e-07,85769.0,85768.0,0.82396188]
[1742479231839,1.1e-07,85769.0,85768.0,0.67042103]
[1742479232105,1.1e-07,85769.0,85768.0,0.50938103]
[1742479232305,1.1e-07,85769.0,85768.0,0.69026103]
[1742479232648,1.1e-07,85769.0,85768.0,0.70192003]
[1742479232887,1.1e-07,85769.0,85768.0,2.05696003]
[1742479233155,1.1e-07,85769.0,85768.0,1.90204003]
[1742479233591,1.1e-07,85769.0,85768.0,1.76296003]
[1742479233853,1.1e-07,85769.0,85768.0,0.40196003]
[1742479234049,1.1e-07,85769.0,85768.0,0.39596003]
[1742479234453,1.1e-07,85769.0,85768.0,0.40096003]
[1742479234656,1.1e-07,85769.0,85768.0,0.39596003]
[1742479235176,1.1e-07,85769.0,85768.0,0.40404003]
[1742479235403,1.1e-07,85769.0,85768.0,0.40104003]
[1742479235576,1.1e-07,85769.0,85768.0,0.71558088]
[1742479235762,1.1e-07,85769.0,85768.0,0.71458088]
[1742479236205,1.1e-07,85769.0,85768.0,0.71858088]
[1742479236405,1.1e-07,85769.0,85768.0,2.29948088]
[1742479236812,1.1e-07,85769.0,85768.0,2.29148088]
[1742479237013,1.1e-07,85769.0,85768.0,2.29748088]
[1742479237234,1.1e-07,85769.0,85768.0,2.30148088]
[1742479237667,1.1e-07,85769.0,85768.0,2.32648088]
[1742479238273,1.1e-07,85769.0,85768.0,2.32248088]
[1742479238866,1.1e-07,85769.0,85768.0,2.17740088]
[1742479239066,1.1e-07,85769.0,85768.0,2.31676088]
[1742479239504,1.1e-07,85789.0,85788.0,0.244788]
[1742479239706,8.5e-07,85789.0,85788.0,1.37826388]
[1742479240262,8.5e-07,85789.0,85788.0,1.39016173]
[1742479240717,8.5e-07,85789.0,85788.0,1.47316173]
[1742479240864,2.5e-07,85805.0,85804.0,0.244743]
[1742479241080,2.5e-07,85805.0,85804.0,0.80387803]
[1742479241711,2.5e-07,85809.0,85808.0,0.56427185]
[1742479241913,2.5e-07,85809.0,85808.0,0.67884688]
[1742479242187,2.5e-07,85809.0,85808.0,0.68384688]
[1742479242386,2.5e-07,85819.0,85818.0,0.544703]
[1742479242589,6.5e-07,85823.0,85822.0,0.544692]
[1742479242792,9.5e-07,85829.0,85822.0,0.68380788]
[1742479242999,9.5e-07,85829.0,85828.0,0.67879088]
[1742479243199,8.6e-07,85829.0,85828.0,0.68379088]
[1742479243691,8.6e-07,85829.0,85828.0,2.18379088]
[1742479244656,8.6e-07,85829.0,85828.0,2.16425003]
[1742479244863,0.0001692,85845.0,85841.0,0.3]
[1742479245072,0.00029389,85845.0,85843.0,0.66420503]
[1742479245289,0.00029389,85845.0,85844.0,1.00297415]
[1742479245520,0.00029389,85845.0,85844.0,0.98899588]
[1742479245970,0.00029389,85845.0,85844.0,1.00064488]
[1742479246810,8.9e-07,85845.0,85844.0,2.50564488]
[1742479247885,8.9e-07,85845.0,85844.0,2.50664488]
[1742479248029,8.9e-07,85845.0,85844.0,1.14672488]
[1742479248218,8.9e-07,85845.0,85844.0,1.01264488]
[1742479248419,8.9e-07,85845.0,85844.0,1.12618403]
[1742479248641,8.9e-07,85845.0,85844.0,1.13218403]
[1742479248850,8.9e-07,85845.0,85844.0,1.15272488]
[1742479249042,8.9e-07,85845.0,85844.0,1.14672488]
[1742479250060,8.9e-07,85845.0,85844.0,1.14072488]
[1742479250587,8.9e-07,85845.0,85844.0,1.15272488]
[1742479251095,0.00016989,85845.0,85844.0,1.14072488]
[1742479251305,0.00016989,85845.0,85844.0,1.14672488]
[1742479251712,0.00016989,85845.0,85844.0,1.00064488]
[1742479252059,0.00016989,85845.0,85844.0,1.14664488]
[1742479252173,0.00016989,85845.0,85844.0,1.00664488]
[1742479252404,0.00016989,85845.0,85844.0,1.14656488]
[1742479252606,0.00016989,85845.0,85844.0,1.15256488]
[1742479253248,8.9e-07,85845.0,85844.0,1.15256488]
[1742479253626,0.002,85869.0,85854.0,0.011647]
[1742479253627,9e-08,85855.0,85854.0,0.011647]
[1742479253850,9e-08,85855.0,85854.0,0.6810446]
[1742479254197,9e-08,85855.0,85854.0,0.67871588]
[1742479254403,9e-08,85855.0,85854.0,0.78371588]
[1742479254972,9e-08,85855.0,85854.0,0.83311588]
[1742479255358,9e-08,85855.0,85854.0,0.85811588]
[1742479255558,9e-08,85869.0,85868.0,0.54456]
[1742479255756,9e-08,85869.0,85868.0,0.81859588]
[1742479256160,9e-08,85879.0,85878.0,0.544532]
[1742479256363,7.1e-07,85879.0,85878.0,1.23316788]
[1742479257987,7.1e-07,85879.0,85878.0,0.93316788]
[1742479258232,7.1e-07,85879.0,85878.0,1.07280788]
[1742479258407,7.1e-07,85879.0,85878.0,1.07880788]
[1742479258655,7.1e-07,85879.0,85878.0,1.07026703]
[1742479259278,7.1e-07,85879.0,85878.0,1.06422703]
[1742479259702,7.1e-07,85879.0,85878.0,1.07022703]
[1742479259923,7.1e-07,85879.0,85878.0,1.06422703]
[1742479260163,7.1e-07,85879.0,85878.0,0.81969503]
[1742479260397,7.1e-07,85879.0,85878.0,0.69173903]
[1742479260657,7.1e-07,85879.0,85878.0,0.006]
[1742479261044,0.00586407,85879.0,85878.0,0.37010703]
[1742479261265,7.1e-07,85879.0,85878.0,0.37010703]
[1742479261662,7.1e-07,85879.0,85878.0,0.50954703]
[1742479262362,7.1e-07,85879.0,85878.0,0.50554703]
[1742479262803,7.1e-07,85879.0,85878.0,0.50954703]
[1742479263006,7.1e-07,85879.0,85878.0,0.82808788]
[1742479263640,7.1e-07,85879.0,85878.0,0.85171081]
[1742479264057,7.1e-07,85889.0,85888.0,0.244504]
[1742479264273,0.0128523,85915.0,85888.0,0.244504]
[1742479264274,9.1e-07,85891.0,85890.0,0.244497]
[1742479264583,0.002,85929.0,85928.0,0.24439]
[1742479264584,3e-07,85929.0,85928.0,0.24439]
[1742479264706,3e-07,85929.0,85928.0,0.25917503]
[1742479264907,0.0004158,85929.0,85928.0,0.24439]
[1742479265295,0.0004158,85929.0,85928.0,0.36396503]
[1742479265700,0.0004158,85929.0,85924.0,0.565998]
[1742479265701,0.232761,85925.0,85924.0,0.55436]
[1742479265906,0.244399,85925.0,85924.0,0.55436]
[1742479266097,0.2331688,85929.0,85903.0,0.011641]
[1742479266098,0.011639,85916.0,85903.0,0.011641]
[1742479266311,0.011639,85916.0,85908.0,0.14004]
[1742479266485,0.0004158,85929.0,85912.0,0.011639]
[1742479266486,0.011638,85921.0,85912.0,0.011639]
[1742479266716,0.011639,85916.0,85912.0,0.11957503]
[1742479266891,0.011638,85921.0,85908.0,0.15168]
[1742479266892,0.244421,85918.0,85913.0,0.11957503]
[1742479267098,0.244427,85915.0,85913.0,0.11957503]
[1742479267274,0.011639,85911.0,85901.0,0.798825]
[1742479267526,0.1252,85912.0,85906.0,0.01164]
[1742479267702,0.1252,85912.0,85907.0,0.35238403]
[1742479267866,0.1252,85912.0,85909.0,0.232803]
[1742479268066,0.232799,85911.0,85909.0,0.11957503]
[1742479268268,0.01164,85909.0,85902.0,0.232822]
[1742479268477,0.1252,85912.0,85909.0,0.232803]
[1742479268684,0.1252,85912.0,85909.0,0.244443]
[1742479268898,0.1252,85912.0,85907.0,0.244448]
[1742479268899,0.011639,85916.0,85912.0,0.1]
[1742479269102,0.3,85926.0,85922.0,0.011638]
[1742479269337,0.3,85926.0,85912.0,0.21957503]
[1742479269338,0.011639,85918.0,85912.0,0.21957503]
[1742479269554,0.232784,85917.0,85912.0,0.23121403]
[1742479269754,0.011639,85913.0,85912.0,0.1]
[1742479269960,0.322032,85913.0,85912.0,0.1]
[1742479270200,0.0776,85913.0,85912.0,0.1]
[1742479270402,0.0776,85913.0,85912.0,0.111639]
[1742479271136,0.232791,85915.0,85912.0,0.1]
[1742479271327,0.058739,85913.0,85912.0,0.101]
[1742479271511,0.358739,85913.0,85912.0,0.1]
[1742479271716,0.258739,85913.0,85912.0,0.1]
[1742479271888,0.270378,85913.0,85912.0,0.102]
[1742479272299,0.270378,85913.0,85912.0,0.101]
[1742479272863,0.270378,85913.0,85912.0,0.1]
[1742479273520,0.24445,85907.0,85899.0,0.244471]
[1742479273788,0.232823,85902.0,85900.0,0.11957503]
[1742479274001,0.011643,85887.0,85878.0,0.011644]
[1742479274220,0.011643,85887.0,85855.0,0.01164198]
[1742479274221,0.011644,85880.0,85873.0,0.244546]
[1742479274400,0.244545,85874.0,85869.0,0.232911]
[1742479274863,0.011645,85870.0,85864.0,0.373085]
[1742479275089,0.011645,85870.0,85865.0,0.011646]
[1742479275296,0.011646,85863.0,85856.0,0.232948]
[1742479275507,0.06390319,85872.0,85866.0,0.011646]
[1742479275707,0.011643,85884.0,85878.0,0.244532]
[1742479275827,0.232873,85884.0,85881.0,0.232879]
[1742479276027,0.011643,85883.0,85877.0,0.232889]
[1742479276240,0.0784,85887.0,85881.0,0.011644]
[1742479276443,0.232894,85876.0,85871.0,0.011645]
[1742479276689,0.232894,85876.0,85864.0,0.0033378]
[1742479277042,0.011644,85875.0,85866.0,0.23292]
[1742479277218,0.011644,85875.0,85865.0,0.244569]
[1742479277631,0.011644,85875.0,85864.0,0.0003378]
[1742479277761,0.011644,85875.0,85866.0,0.003]
[1742479277963,0.244538,85878.0,85871.0,0.011645]
[1742479277964,0.011644,85878.0,85871.0,0.011645]
[1742479278189,0.0486,85889.0,85886.0,0.244509]
[1742479278464,0.311265,85887.0,85881.0,0.011644]
[1742479278719,0.0784,85887.0,85882.0,0.35245103]
[1742479278951,0.011642,85893.0,85882.0,0.35245103]
[1742479278952,0.011641,85898.0,85893.0,0.232846]
[1742479279170,0.23284,85896.0,85890.0,0.244496]
[1742479279413,0.011642,85891.0,85886.0,0.244507]
[1742479279689,0.011641,85897.0,85891.0,0.244494]
[1742479279929,0.232832,85899.0,85894.0,0.232845]
[1742479280092,0.12780638,85910.0,85900.0,0.011641]
[1742479280333,0.01164,85908.0,85903.0,0.011641]
[1742479280544,0.232818,85904.0,85899.0,0.23283]
[1742479280746,0.244473,85899.0,85895.0,0.11957503]
[1742479280946,0.244466,85902.0,85898.0,0.232833]
[1742479281061,0.232825,85902.0,85899.0,0.232831]
[1742479281487,0.232831,85899.0,85886.0,0.244508]
[1742479281695,0.011643,85886.0,85877.0,0.011644]
[1742479282028,0.011642,85890.0,85876.0,0.011644]
[1742479282029,0.011643,85888.0,85882.0,0.152083]
[1742479282235,0.232872,85884.0,85882.0,0.14044]
[1742479282590,0.011644,85879.0,85873.0,0.14064]
[1742479282790,0.011644,85874.0,85866.0,0.232919]
[1742479282994,0.232895,85876.0,85872.0,0.232904]
[1742479283194,0.232915,85869.0,85866.0,0.11957503]
[1742479283396,0.244561,85868.0,85866.0,0.11957503]
[1742479283558,0.23291,85870.0,85866.0,0.11957503]
[1742479283881,0.23291,85870.0,85865.0,0.232923]
[1742479284019,0.244552,85872.0,85865.0,0.244569]
[1742479284222,0.011644,85879.0,85870.0,0.011645]
[1742479284423,0.244535,85877.0,85872.0,0.011645]
[1742479284628,0.232899,85874.0,85871.0,0.232907]
[1742479284848,0.011644,85875.0,85868.0,0.011645]
[1742479285049,0.0758,85882.0,85864.0,0.0003378]
[1742479285050,0.244569,85865.0,85864.0,0.0003378]
[1742479285252,0.232921,85866.0,85864.0,0.0003378]
[1742479285456,0.244569,85865.0,85864.0,0.0003378]
[1742479286427,0.232903,85873.0,85869.0,0.011645]
[1742479286626,0.42512,85882.0,85871.0,0.232906]
[1742479286627,0.3,85877.0,85871.0,0.232906]
[1742479286832,0.232921,85866.0,85864.0,0.0033378]
[1742479287036,0.232921,85866.0,85864.0,0.0063378]
[1742479287443,0.244561,85868.0,85864.0,0.0063378]
[1742479287654,0.244558,85869.0,85866.0,0.232921]
[1742479287816,0.232916,85868.0,85864.0,0.2479088]
[1742479287997,0.232916,85868.0,85864.0,0.2362628]
[1742479288198,0.232916,85868.0,85864.0,0.2332628]
[1742479288439,0.011645,85867.0,85864.0,0.0003378]
[1742479288650,0.244569,85865.0,85864.0,0.0003378]
[1742479289175,0.232923,85865.0,85864.0,0.0023378]
[1742479289341,0.232917,85868.0,85864.0,0.00046242]
[1742479289542,0.011645,85869.0,85864.0,0.00046242]
[1742479289777,0.232915,85868.0,85864.0,0.00246242]
[1742479289927,0.232919,85867.0,85864.0,0.00546242]
[1742479290125,0.011645,85873.0,85864.0,0.00346242]
[1742479290333,0.24456,85869.0,85864.0,0.01210842]
[1742479290547,0.0001689,85879.0,85876.0,0.232891]
[1742479290769,0.2330559,85879.0,85872.0,0.011645]
[1742479290949,0.011644,85877.0,85873.0,0.2329]
[1742479291153,0.232892,85877.0,85873.0,0.2329]
[1742479291553,0.232888,85878.0,85875.0,0.232896]
[1742479291754,0.232896,85875.0,85871.0,0.24455]
[1742479291954,0.244538,85876.0,85872.0,0.232903]
[1742479292161,0.011644,85874.0,85870.0,0.232909]
[1742479292363,0.244569,85865.0,85864.0,0.00246242]
[1742479292973,0.244569,85865.0,85864.0,0.00046242]
[1742479293178,0.232921,85866.0,85864.0,0.00046242]
[1742479293381,0.232923,85865.0,85864.0,0.00046242]
[1742479293577,0.244569,85865.0,85864.0,0.00046242]
[1742479293995,0.244569,85865.0,85864.0,0.00346242]
[1742479295099,0.244569,85865.0,85864.0,0.00646242]
[1742479296441,0.626469,85865.0,85864.0,0.00646242]
[1742479297351,0.626469,85865.0,85864.0,0.00346242]
[1742479297801,0.544569,85865.0,85864.0,0.00346242]
[1742479298568,0.011644,85877.0,85869.0,0.011645]
[1742479298775,0.232895,85876.0,85871.0,0.232907]
[1742479298967,0.232895,85876.0,85869.0,0.011645]
[1742479298968,0.011644,85878.0,85869.0,0.23291]
[1742479299120,0.232909,85871.0,85867.0,0.232918]
[1742479299327,0.23291,85870.0,85867.0,0.232918]
[1742479299535,0.232909,85871.0,85864.0,0.23338542]
[1742479299536,0.244525,85881.0,85874.0,0.011644]
[1742479299736,0.0118129,85879.0,85874.0,0.011644]
[1742479299954,0.23289,85878.0,85874.0,0.244543]
[1742479300163,0.23289,85878.0,85875.0,0.011644]
[1742479300383,0.23289,85878.0,85875.0,0.232894]
[1742479300744,0.232915,85868.0,85863.0,0.232928]
[1742479300982,0.24456,85868.0,85860.0,0.152406]
[1742479301188,0.24456,85868.0,85863.0,0.232927]
[1742479301390,0.24456,85868.0,85865.0,0.232921]
[1742479302205,0.23291,85870.0,85865.0,0.244567]
[1742479302368,0.232914,85869.0,85866.0,0.232921]
[1742479302564,0.232915,85868.0,85867.0,0.002]
[1742479302759,0.232919,85867.0,85864.0,0.23338842]
[1742479302946,0.24456,85868.0,85864.0,0.00046242]
[1742479303145,0.232913,85869.0,85866.0,0.232921]
[1742479303390,0.232913,85869.0,85865.0,0.234923]
[1742479303581,0.232918,85867.0,85864.0,0.23338742]
[1742479303828,0.232918,85867.0,85865.0,0.002]
[1742479304555,0.232912,85869.0,85865.0,0.234923]
[1742479305028,0.232912,85870.0,85866.0,0.232921]
[1742479305248,0.232913,85869.0,85866.0,0.232921]
[1742479305400,0.232913,85869.0,85864.0,0.01210842]
[1742479305401,0.2446999,85879.0,85874.0,0.232899]
[1742479305604,0.0001689,85879.0,85874.0,0.244543]
[1742479305903,0.232893,85876.0,85872.0,0.232904]
[1742479306100,0.0001689,85879.0,85877.0,0.232888]
[1742479306308,0.2330549,85879.0,85875.0,0.011644]
[1742479306504,0.2330549,85879.0,85869.0,0.011645]
[1742479306505,0.011644,85874.0,85869.0,0.011645]
[1742479306824,0.244545,85874.0,85871.0,0.232906]
[1742479307207,0.232902,85873.0,85870.0,0.232908]
[1742479307407,0.244552,85872.0,85864.0,0.00046242]
[1742479307609,0.244569,85865.0,85864.0,0.00046242]
[1742479309555,0.244569,85865.0,85864.0,0.00246242]
[1742479310097,0.244569,85865.0,85864.0,0.00446242]
[1742479310997,0.011646,85865.0,85864.0,0.00446242]
[1742479311230,0.244569,85865.0,85864.0,0.00446242]
[1742479312954,0.232904,85873.0,85870.0,0.23291]
[1742479313160,0.011645,85870.0,85865.0,0.232923]
[1742479313381,0.232918,85867.0,85864.0,0.00446242]
[1742479313598,0.232918,85867.0,85864.0,0.23738642]
[1742479313834,0.232922,85866.0,85864.0,0.00446242]
[1742479314259,0.011644,85877.0,85868.0,0.011645]
[1742479314454,0.232896,85876.0,85869.0,0.011645]
[1742479314780,0.12780638,85880.0,85871.0,0.011645]
[1742479314997,0.011644,85875.0,85867.0,0.232916]
[1742479315198,0.011645,85869.0,85864.0,0.23538642]
[1742479315418,0.232919,85867.0,85864.0,0.00046242]
[1742479315626,0.244569,85865.0,85864.0,0.00046242]
[1742479316224,0.544569,85865.0,85864.0,0.00046242]
[1742479316433,0.244643,85839.0,85838.0,0.000338]
[1742479317228,0.232992,85840.0,85838.0,0.000338]
[1742479317598,0.088946,85863.0,85853.0,0.011647]
[1742479317780,0.244575,85864.0,85858.0,0.011647]
[1742479318053,0.232941,85859.0,85856.0,0.232947]
[1742479318271,0.00012453,85864.0,85852.0,0.011647]
[1742479318473,0.00012453,85864.0,85863.0,0.244575]
[1742479318582,0.00012453,85864.0,85863.0,0.36415003]
[1742479319983,0.00012453,85864.0,85863.0,0.2492319]
[1742479320399,0.00012453,85864.0,85863.0,0.2608779]
[1742479320650,0.00012453,85864.0,85863.0,0.2628779]
[1742479321131,5.3e-07,85864.0,85863.0,0.6085779]
[1742479321358,5.3e-07,85864.0,85863.0,0.70391875]
[1742479321741,0.0001689,85879.0,85878.0,0.244532]
[1742479321947,9e-07,85879.0,85878.0,0.64420788]
[1742479322466,9e-07,85879.0,85878.0,0.62966703]
[1742479322674,7.342e-05,85879.0,85878.0,0.62966703]
[1742479323321,7.342e-05,85879.0,85878.0,0.62970703]
[1742479323514,7.342e-05,85879.0,85878.0,0.41520703]
[1742479323729,7.342e-05,85879.0,85878.0,0.12557503]
[1742479323840,7.342e-05,85879.0,85878.0,0.006]
[1742479324043,0.01164804,85879.0,85878.0,0.006]
[1742479324283,7.342e-05,85879.0,85878.0,0.017644]
[1742479324803,7.342e-05,85879.0,85878.0,0.011644]
[1742479325327,7.342e-05,85879.0,85878.0,0.13121903]
[1742479325526,7.342e-05,85879.0,85878.0,0.13721903]
[1742479325724,7.342e-05,85879.0,85878.0,0.13121903]
[1742479326104,7.342e-05,85879.0,85878.0,0.13421903]
[1742479326453,7.342e-05,85879.0,85878.0,0.12557503]
[1742479326784,7.342e-05,85879.0,85878.0,0.12957503]
[1742479326984,7.342e-05,85879.0,85878.0,0.13521903]
[1742479327184,7.342e-05,85879.0,85878.0,0.13121903]
[1742479327385,7.342e-05,85879.0,85878.0,0.13621903]
[1742479328021,7.342e-05,85879.0,85878.0,0.011644]
[1742479328249,0.01171742,85879.0,85878.0,0.004]
[1742479328451,0.01171742,85879.0,85878.0,0.236888]
[1742479328452,7.342e-05,85879.0,85878.0,0.236888]
[1742479328657,7.342e-05,85879.0,85878.0,0.37210703]
[1742479328866,7.342e-05,85879.0,85878.0,0.50862703]
[1742479329287,7.342e-05,85879.0,85878.0,0.51162703]
[1742479329492,7.342e-05,85879.0,85878.0,0.50862703]
[1742479329697,7.342e-05,85879.0,85878.0,0.50462703]
[1742479329898,7.342e-05,85879.0,85878.0,0.51162703]
[1742479330255,7.342e-05,85879.0,85878.0,0.50762703]
[1742479330455,7.342e-05,85879.0,85878.0,0.81916788]
[1742479330832,4.2e-07,85879.0,85878.0,0.82416788]
[1742479331169,3e-07,85929.0,85878.0,0.57963588]
[1742479331370,0.232761,85925.0,85917.0,0.011639]
[1742479331550,0.00041575,85929.0,85915.0,0.232786]
[1742479331551,0.011638,85922.0,85916.0,0.244423]
[1742479331772,0.232776,85920.0,85916.0,0.373465]
[1742479331966,0.232776,85920.0,85915.0,0.011639]
[1742479331967,0.24442,85918.0,85915.0,0.14068]
[1742479332166,0.232776,85920.0,85915.0,0.373465]
[1742479332363,0.244411,85921.0,85916.0,0.232783]
[1742479332799,0.232775,85920.0,85916.0,0.232783]
[1742479332997,0.244415,85919.0,85915.0,0.373466]